Cogmind - Beta 13 @@@ ROGUE MODE // 2024.04.24 @ 21:11:44 Player: Gabe+Kate4EVR Result: Self-destructed Performance ------------- Evolutions (2) 1000 Regions Visited (3) 600 Robots Destroyed (48) 240 Value Destroyed (959) 959 Prototype IDs (5) 100 Alien Tech Used (0) 0 Bonus (18) 18 TOTAL SCORE: 2917 Bonus ------- High Alert Combat Kills 18 Cogmind --------- Core Integrity 111/550 Matter 47/300 Energy 100/100 System Corruption 0% Temperature Warning (392) Movement Core (200) Ox3 Location -8/Materials Parts ------- > --- POWER (1) -------- (None) > --- PROPULSION (4) --- (None) > --- UTILITY (2) ------ Medium Storage Unit > --- WEAPON (4) ------- (None) > --- INVENTORY (10) --- Ion Engine Medium Storage Unit High-capacity Matter Pod (0) ECM Suite Long-range Tractor Beam Improved Medium Laser Peak State ------------ > --- POWER ------------ Heavy Ion Engine > --- PROPULSION ------- Light Treads Light Treads VSS Leg > --- UTILITY ---------- Medium Storage Unit Particle Charger > --- WEAPON ----------- Assault Cannon Assault Cannon Assault Cannon > --- INVENTORY -------- Ion Engine Medium Storage Unit High-capacity Matter Pod ECM Suite Long-range Tractor Beam Small Laser Improved Medium Laser Assault Rifle Light Assault Rifle Light Cannon [Rating: 22] Favorites ----------- Power Ion Engine Engine Ion Engine Propulsion Light Treads Treads Light Treads Leg Aluminum Leg Hover Unit Hover Unit Flight Unit Flight Unit Utility Medium Storage Unit Device Long-range Tractor Beam Storage Medium Storage Unit Processor Visual Processing Unit Weapon Assault Rifle Energy Gun Improved Medium Laser Energy Cannon Light EM Pulse Cannon Ballistic Gun Assault Rifle Ballistic Cannon Assault Cannon Build | -11 -10 -9 -8 ------- Run | Yrd Mat Mat Mat Slots Evolved 4 | . . 2 2 Power . | . . . . Propulsion 2 | . . . 2 Utility . | . . . . Weapon 2 | . . 2 . Parts Attached 46 | 6 3 16 21 Power 3 | 1 . 2 . Engine 3 | 1 . 2 . Core . | . . . . Reactor . | . . . . Propulsion 17 | 2 . 7 8 Treads 7 | 2 . 3 2 Leg 4 | . . 2 2 Wheel . | . . . . Hover 2 | . . 2 . Flight 4 | . . . 4 Utility 6 | 1 2 . 3 Device 3 | . . . 3 Storage 2 | 1 1 . . Processor 1 | . 1 . . Hackware . | . . . . Protection . | . . . . Artifact . | . . . . Weapon 20 | 2 1 7 10 Energy Gun 4 | . . 3 1 Energy Cannon 1 | . . . 1 Ballistic Gun 11 | 2 1 4 4 Ballistic Cannon 4 | . . . 4 Launcher . | . . . . Special Weapon . | . . . . Impact Weapon . | . . . . Slashing Weapon . | . . . . Piercing Weapon . | . . . . Special Melee Weapon . | . . . . Unidentified Prototypes 2 | . . 2 . Parts Lost 16 | . . . 16 Power 1 | . . . 1 Propulsion 5 | . . . 5 Utility 1 | . . . 1 Weapon 9 | . . . 9 Highest Loss Streak 12 | . . . 12 To Critical Strikes . | . . . . Average Slot Usage (%) 89 | . 93 99 81 Engine 11 | . 14 11 8 Treads 20 | . 28 7 20 Leg 2 | . . 9 1 Flight 1 | . . . 2 Device 1 | . . . 4 Storage 11 | . 14 11 9 Processor 6 | . 7 11 3 Energy Gun 5 | . . 8 9 Ballistic Gun 20 | . 28 35 4 Ballistic Cannon 6 | . . . 15 Naked Turns . | . . . . Heaviest Build 40 | 14 19 29 40 Greatest Support 60 | 40 40 40 60 Greatest Overweight (x) 3 | . . 3 3 Average Overweight (x) . | . . . . Largest Inventory Capacity 10 | 8 10 10 10 Average Capacity 9 | 6 8 10 10 Most Carried 10 | 2 10 10 10 Average Carried 7 | . 4 9 9 Final Capacity 10 | 8 10 10 10 Final Carried 10 | 2 10 10 6 Class Distribution -------------------- 47% | Mutant 19% | Skirmisher 16% | Gunner 10% | Scavenger-Skirmisher 3% | Scavenger-Mutant Dominant Class ---------------- Mutant | -10/Materials Scavenger-Skirmisher | -9/Materials Gunner | -8/Materials Resources | -11 -10 -9 -8 ----------- Run | Yrd Mat Mat Mat Matter Collected 1253 | 216 306 171 560 Remotely 186 | . . . 186 Salvage Created 1483 | . 641 212 630 Parts 88 | . 33 24 31 Haulers Intercepted 3 | . 1 1 1 Recyclers Shooed 1 | . 1 . . Parts Field Recycled . | . . . . Retrieved Matter . | . . . . Parts Self-Destructed . | . . . . Prevented . | . . . . Kills | -11 -10 -9 -8 ------- Run | Yrd Mat Mat Mat Combat Hostiles Destroyed 34 | . 11 5 18 Guns 25 | . 11 5 9 Cannons 9 | . . . 9 Classes Destroyed 9 | . 6 . 3 Worker 2 | . 2 . . Builder 2 | . . . 2 Hauler 3 | . 1 1 1 Recycler 4 | . 3 . 1 Watcher 3 | . 1 2 . Swarmer 18 | . 6 3 9 Grunt 13 | . 5 2 6 Sentry 1 | . . . 1 Specialist 2 | . . . 2 Best Kill Streak 10 | . 5 5 10 Combat Bots Only 8 | . 4 5 8 Max Kills in Single Turn 2 | . 1 2 2 Gunslinging 1 | . . 1 . Exploded . | . . . . Melee . | . . . . Uniques/NPCs Destroyed . | . . . . Combat | -11 -10 -9 -8 -------- Run | Yrd Mat Mat Mat Hostile Shots Fired 280 | . 42 23 215 Missed 79 | . 13 6 60 Damage Taken 2522 | . 266 154 2102 Core 495 | . 34 22 439 Absorbed by Shields . | . . . . Core Remaining (%) 93 | 100 86 94 . Volleys Fired 131 | . 48 15 68 Largest 4 | . 2 4 4 Hottest 188 | . 40 152 188 Shots Fired 312 | . 96 60 156 Gun 243 | . 96 60 87 Cannon 69 | . . . 69 Launcher . | . . . . Special . | . . . . Kinetic 264 | . 96 58 110 Thermal 44 | . . 2 42 Explosive . | . . . . Electromagnetic 4 | . . . 4 Robot Hit Streak 12 | . 8 8 12 Robot Miss Streak 10 | . 6 10 3 Penetration Max . | . . . . Secondary Targets 3 | . 1 2 . Max Gunslinging Chain 1 | . 1 1 . Shots Hit Robots 163 | . 51 30 82 Core Hits 68 | . 24 11 33 Critical Kills 2 | . 1 . 1 Critical Parts Destroyed 1 | . . 1 . Critical Strikes 5 | . 1 1 3 Burn 1 | . . . 1 Destroy 3 | . 1 1 1 Blast 1 | . . . 1 Melee Attacks . | . . . . Impact . | . . . . Slashing . | . . . . Piercing . | . . . . Sneak Attacks . | . . . . Combat Hostiles . | . . . . Follow-up Attacks . | . . . . Damage Inflicted 2757 | . 668 403 1686 Guns 1732 | . 668 403 661 Cannons 991 | . . . 991 Explosions 34 | . . . 34 Melee . | . . . . Ramming . | . . . . Kinetic 2275 | . 668 403 1204 Thermal 401 | . . . 401 Explosive . | . . . . Electromagnetic 81 | . . . 81 Impact . | . . . . Slashing . | . . . . Piercing . | . . . . Highest Corruption . | . . . . Average Corruption . | . . . . Corruption Purged . | . . . . Corruption Blocked . | . . . . Overload Shots . | . . . . Overflow Damage 3 | . . . 3 Projectiles 3 | . . . 3 Explosions . | . . . . Melee . | . . . . Knockbacks 8 | . . . 8 Impact . | . . . . Kinetic 7 | . . . 7 Secondary 1 | . . . 1 Self-Inflicted Damage 51 | . . . 51 Shots 2 | . . . 2 Rammed . | . . . . Targets Rammed . | . . . . Kicked . | . . . . Crushed . | . . . . Highest Temperature 583 | . . 81 583 Average Temperature 211 | . . 18 256 Received Heat Transfer 519 | . 90 42 387 Effects 26 | . . . 26 Shutdowns 4 | . . . 4 Energy Bleed 3 | . . . 3 Interference 6 | . . . 6 Matter Decay 2 | . . . 2 Short Circuit 4 | . . . 4 Damage (minor) 4 | . . . 4 Damage (major) 1 | . . . 1 Damage (core) 2 | . . . 2 Siege Activations . | . . . . Robots Corrupted . | . . . . Combat Hostiles . | . . . . Parts Fried . | . . . . Impact Corruptions . | . . . . Robots Melted . | . . . . Combat Hostiles . | . . . . Parts Melted 2 | . . . 2 Heat Transferred 940 | . . . 940 Parts Sabotaged . | . . . . Parts Stolen . | . . . . Parts Stripped . | . . . . Power Chain Reactions 1 | . . . 1 Alert | -11 -10 -9 -8 ------- Run | Yrd Mat Mat Mat Peak Influence 497 | . 251 252 497 Initial 105 | . . 76 105 Average 192 | . 133 185 280 Maximum Alert Level 2 | . 1 1 2 Low Security (%) 48 | 100 71 38 25 Level 1 47 | . 28 61 64 Level 2 3 | . . . 10 Level 3 . | . . . . Level 4 . | . . . . Level 5 . | . . . . High Security . | . . . . Max Security . | . . . . Squads Dispatched 11 | . 4 1 6 Investigation 1 | . 1 . . Extermination . | . . . . Reinforcement 6 | . 3 1 2 Assault . | . . . . Garrison 4 | . . . 4 Intercept . | . . . . Searches Triggered . | . . . . Construction Impeded . | . . . . Haulers Reinforced . | . . . . Active Scanning Responses . | . . . . Cargo Convoy Interrupts . | . . . . Stealth | -11 -10 -9 -8 --------- Run | Yrd Mat Mat Mat Distress Signals 3 | . 1 . 2 Communications Jammed . | . . . . Distress Signals . | . . . . Times Spotted 53 | . 19 9 25 Peak Tracking Total 7 | . 4 5 7 Tactical Retreats 3 | . 2 . 1 Traps | -11 -10 -9 -8 ------- Run | Yrd Mat Mat Mat Traps Triggered 1 | . 1 . . Indirectly . | . . . . Trap Hack Attempts . | . . . . Triggered . | . . . . Disarmed . | . . . . Reprogrammed . | . . . . Reused . | . . . . Traps Extracted . | . . . . Installed . | . . . . Triggered . | . . . . Machines | -11 -10 -9 -8 ---------- Run | Yrd Mat Mat Mat Machines Disabled 1 | . . . 1 Max in Single Turn 1 | . . . 1 Machines Repaired . | . . . . Machines Dismantled . | . . . . Machines Sabotaged . | . . . . Overloaded Fab Kills . | . . . . Hacking | -11 -10 -9 -8 --------- Run | Yrd Mat Mat Mat Machines Accessed 2 | . 1 . 1 Terminals 2 | . 1 . 1 Fabricators . | . . . . Repair Stations . | . . . . Recycling Units . | . . . . Scanalyzers . | . . . . Garrison Access . | . . . . Total Hacks 3 | . 2 . 1 Successful 1 | . . . 1 Failed 2 | . 2 . . Catastrophic . | . . . . Database Lockouts . | . . . . Manual 2 | . 2 . . Terminals 3 | . 2 . 1 Fabricators . | . . . . Repair Stations . | . . . . Recycling Units . | . . . . Scanalyzers . | . . . . Garrison Access . | . . . . Terminal Hacks 1 | . . . 1 Prototype ID Bank 1 | . . . 1 Fabricator Hacks . | . . . . Repair Station Hacks . | . . . . Recycling Unit Hacks . | . . . . Scanalyzer . | . . . . Garrison Access Hacks . | . . . . Unauthorized Hacks . | . . . . Terminals . | . . . . Fabricators . | . . . . Repair Stations . | . . . . Recycling Units . | . . . . Scanalyzers . | . . . . Garrison Access . | . . . . Data Cores Recovered . | . . . . Used . | . . . . Hacking Detections 2 | . 1 . 1 Full Trace Events . | . . . . Feedback Events . | . . . . Feedback Blocked . | . . . . Robot Schematics Acquired . | . . . . Robots Built . | . . . . Authchips . | . . . . Time . | . . . . Total Robot Build Rating . | . . . . Part Schematics Acquired . | . . . . Parts Built . | . . . . Authchips . | . . . . Time . | . . . . Total Part Build Rating . | . . . . Parts Repaired . | . . . . Time . | . . . . Parts Recycled . | . . . . Recycled Matter . | . . . . Retrieved Matter . | . . . . Retrieved Components . | . . . . Parts Scanalyzed . | . . . . Part Schematics Acquired . | . . . . Parts Damaged . | . . . . Bothacking | -11 -10 -9 -8 ------------ Run | Yrd Mat Mat Mat Used RIF Installer . | . . . . Robots Hacked . | . . . . Non-combat . | . . . . Combat . | . . . . Robot Hacks Applied . | . . . . Relay Couplers Released . | . . . . Fabnet Peak Effective % . | . . . . Robots Rewired . | . . . . Allies Hacked . | . . . . Hacks Repelled . | . . . . Allies | -11 -10 -9 -8 -------- Run | Yrd Mat Mat Mat Total Allies . | . . . . Largest Group . | . . . . Highest-Rated Group . | . . . . Highest-Rated Ally . | . . . . Total Orders . | . . . . Ally Attacks . | . . . . Total Damage . | . . . . Kills . | . . . . Allies Corrupted . | . . . . Allies Melted . | . . . . Intel | -11 -10 -9 -8 ------- Run | Yrd Mat Mat Mat Robot Analysis Total . | . . . . Derelict Logs Recovered . | . . . . Drone Launches . | . . . . Drone Recoveries . | . . . . Exploration | -11 -10 -9 -8 ------------- Run | Yrd Mat Mat Mat Turns Passed 1586 | 91 562 326 607 Spaces Moved 631 | 58 239 149 185 Core 12 | 11 . . 1 Treads 485 | 47 239 64 135 Legs 97 | . . 53 44 Wheels . | . . . . Hover 32 | . . 32 . Flight 5 | . . . 5 Fastest Speed 50 | 50 160 116 134 Average Speed 168 | 139 160 164 190 Slowest Speed 270 | 160 160 260 270 Overloaded Moves . | . . . . Propulsion Burnouts . | . . . . Robots Hopped . | . . . . Cave-ins Triggered . | . . . . Exploration Rate (%) 16 | 3 32 19 12 Regions Visited 3 Branch Regions . Pre-discovered Areas . | . . . . Known Exits Taken . | . . . . Unknown Exits Taken 3 | 1 1 1 . Scrap Searched . | . . . . Spaces Dug . | . . . . Terrain Destroyed 19 | . . . 19 Melee . | . . . . Projectile 14 | . . . 14 AOE 5 | . . . 5 Terrain Rammed . | . . . . Walls Destroyed . | . . . . Machines Disabled . | . . . . Actions | -11 -10 -9 -8 --------- Run | Yrd Mat Mat Mat Total 896 | 65 322 196 313 Wait 49 | . 23 2 24 Move 628 | 57 238 148 185 Hop . | . . . . Pick Up 12 | 2 8 1 1 Fast Attach 31 | 6 1 10 14 Attach 9 | . . 2 7 Detach 6 | . . 2 4 Swap 6 | . 2 4 . Drop 24 | . 2 12 10 Fire 131 | . 48 15 68 Melee . | . . . . Ram . | . . . . Kick . | . . . . Crush . | . . . . Escape Stasis . | . . . . Rewire . | . . . . Trap . | . . . . Miscellaneous . | . . . . Route ------- -11/Scrapyard -10/Materials -9/Materials -8/Materials History --------- Turn | Location | Event 23 | -11/Scrapyard | Discovered new exit (range 16) 92 | -11/Scrapyard | Entered Materials 302 | -10/Materials | Build established: Mutant 467 | -10/Materials | Discovered new exit (range 14) 654 | -10/Materials | Entered another Materials area 654 | -9/Materials | Evolved 2 slots: Weapon x2 876 | -9/Materials | Discovered new exit (range 18) 980 | -9/Materials | Entered another Materials area 980 | -8/Materials | Evolved 2 slots: Propulsion x2 1145 | -8/Materials | Garrison activated, responded to threat 1201 | -8/Materials | Destroyed 8 combat bots 1543 | -8/Materials | Garrison activated, responded to threat 1564 | -8/Materials | Core integrity fell below 50% 1587 | -8/Materials | Self-destructed Last Messages --------------- 01567_ Assault Cannon destroyed. 01568_ Broken Assault Rifle destroyed. 01569_ Overheating: Med. Storage Unit damaged (-118). 01569_ X-57 Shotgunner misfires. 01569_ Sml. Laser destroyed. 01570_ G-47 Trooper destroyed. 01570_ Flight Unit destroyed. 01571_ Overheating: Assault Cannon damaged (-11). 01573_ Assault Cannon destroyed. 01574_ R-06 Scavenger collects Corrupted VSS Leg. 01574_ M-13 Machinist repairs X-57 Shotgunner. 01575_ Hvy. Ion Engine destroyed. 01576_ X-57 Shotgunner knocked back. 01577_ Overheating: Energy bleed (-20). 01577_ R-06 Scavenger collects Corrupted Particle Gun. 01581_ Lgt. Assault Rifle destroyed. 01581_ K-01 Serf collects debris. 01583_ X-57 Shotgunner knocked back. 01585_ Lgt. Cannon destroyed. 01586_ Overheating: Med. Storage Unit damaged (-39). Map ----- +----------------------------------------------------+ | | | | | | | | | ???????????##############????????????????????????? | | ??????????# # #???????????????????????? | | ??????????# # #???????????????????????? | | ########### !! # #???????????????????????? | | + !! # """ """ #???????????????????????? | | # ! # """ """ #???????????????????????? | | # # """ """ #???????????????????????? | | # # [ #???????????????????????? | | # # # * [ #???????????????????????? | | # ##########/#####?????#####?????????????? | | # ########=] ####### #?????????????? | | # =!!*T" [ ##????????????? | | # ! " T ???????? | | # ! [ ####??????????? | | #######+########## ####### #?????????????? | | ??# #????## ##############?????????????? | | ??# #?????#x # """ #????????????????? | | ??# #?????#% %; """ #????????????????? | | ??# """ """ #?????#% ; """ #????????????????? | | ??# """ """ #?????# *%= #????????????????? | | ??# """ """ #?????#% ;% ! #????????????????? | | ??# #?????# # @ = #????????????????? | | ??# #?????# = ! #????????????????? | | ??###########?????# ; %!*! # """????????????? | | ??????????????????# g;;;;;###### #??????????? | | ????????????????? #%#!####?????[ +???H??????? | | ??????????????? # r###%#?????????? #??????????? | | ????????????? # ###x#??????????????????????? | | ???????????? ? ?# #?#%#??????????????????????? | | ????????????? ?? ?# #?# ;??????????????????????? | | ??????????????? ??# #?# #??????????????????????? | | ??????????????????# ?? +??????????????????????? | | ??????????????????# ??# #??????????????????????? | | ??????????????????? ??# #??????????????????????? | | ????????????????????????# #??????????????????????? | | ????????????????????????# #??????????????????????? | | ?????????????????????????%???????????????????????? | | ????????????????????????? ???????????????????????? | | ????????????????????????? ???????????????????????? | | ????????????????????????? ???????????????????????? | | ????????????????????????? ???????????????????????? | | ????????????????????????? ???????????????????????? | | ????????????????????????? ???????????????????????? | | ?????????????????????????????????????????????????? | | ?????????????????????????????????????????????????? | | ?????????????????????????????????????????????????? | +----------------------------------------------------+ Best States ------------- Heat Dissipation 31 Energy Generation 14 Energy Capacity 280 Matter Stores 300 Matter Capacity 300 Sight Range 18 Terrain Scan Density 10 Additional Mass Support 6 Evasion (%) 40 Recoil Reduction 3 Particle Charging 15 Item Schematics ----------------- None Robot Schematics ------------------ None Fabricated ------------ Nothing Alien Tech Used ----------------- None Achievements -------------- None Challenges ------------ None Game ------ Seed SpikedReactionBattery Manual? 0 Play Time 00:11:49 Cumulative 121.6 hours Start 2024.04.24 @ 20:24:13 End 2024.04.24 @ 21:11:44 Sessions 1 Manual Loads 0 Difficulty Rogue Special Mode None Game No. 248 Rogue 248 Adventurer 0 Explorer 0 Win Type - Total 0 Types 0/0/0/0/0/0/0/0/0 Lore% 34 Gallery% 53 Achievement% 37 Wizard Run 0 Options --------- Layout 0 ASCII 0 Keyboard 1 Movement Numpad Keybinds 0 Fullscreen 2 Font 18/X11 Map View 76x50 Zoom Use 0% Tactical HUD 1 Map Filters NONE Filters NONE Steam 1 RUN: 697116ff-286e-432b-8995-dc3c78493bd1